[Event "*** Titled Tuesday 3|2 Blitz"]
[Site "Chess.com"]
[Date "2016.03.01"]
[Round "8"]
[White "AlexanderL"]
[Black "chessdude"]
[Result "1/2-1/2"]
[WhiteElo "2571"]
[BlackElo "2402"]
[TimeControl "180+2"]
[EndTime "18:38:05 PST"]
[Termination "Game drawn by agreement"]

1. d4 {[%clk 0:03:01.9]} 1... d5 {[%clk 0:03:01.1]} 2. c4 {[%clk 0:03:02.6]}
2... c6 {[%clk 0:03:02.6]} 3. cxd5 {[%clk 0:03:02.3]} 3... cxd5 {[%clk
0:03:02.7]} 4. Bf4 {[%clk 0:03:03.9]} 4... Nf6 {[%clk 0:03:02.7]} 5. e3 {[%clk
0:03:04.3]} 5... Nc6 {[%clk 0:03:03.7]} 6. Nc3 {[%clk 0:03:04.9]} 6... Bf5
{[%clk 0:03:03.8]} 7. Qb3 {[%clk 0:03:04.5]} 7... Na5 {[%clk 0:03:03.9]} 8. Qa4+
{[%clk 0:03:05.5]} 8... Bd7 {[%clk 0:03:04.9]} 9. Qc2 {[%clk 0:03:06.5]} 9...
Rc8 {[%clk 0:03:04.1]} 10. Bd3 {[%clk 0:03:01.8]} 10... b5 {[%clk 0:03:04.3]}
11. a3 {[%clk 0:03:01]} 11... e6 {[%clk 0:03:05.6]} 12. Nf3 {[%clk 0:03:00.8]}
12... Be7 {[%clk 0:03:06.9]} 13. O-O {[%clk 0:02:58.1]} 13... O-O {[%clk
0:03:04.5]} 14. Rfc1 {[%clk 0:02:56]} 14... Nc4 {[%clk 0:03:05]} 15. Ne5 {[%clk
0:02:55.4]} 15... Be8 {[%clk 0:03:03.4]} 16. Qe2 {[%clk 0:02:40.9]} 16... Nd7
{[%clk 0:02:59.2]} 17. Nf3 {[%clk 0:02:19.8]} 17... Ndb6 {[%clk 0:02:48.5]} 18.
Rc2 {[%clk 0:01:57]} 18... a6 {[%clk 0:02:37.8]} 19. Rac1 {[%clk 0:01:56]} 19...
Bd7 {[%clk 0:02:38.8]} 20. Nb1 {[%clk 0:01:51.4]} 20... Nd6 {[%clk 0:02:32.4]}
21. Nbd2 {[%clk 0:01:49]} 21... Nbc4 {[%clk 0:02:02.8]} 22. Nb3 {[%clk
0:01:48.6]} 22... Ne4 {[%clk 0:02:04.2]} 23. Ne5 {[%clk 0:01:42.2]} 23... Nxe5
{[%clk 0:02:01.9]} 24. dxe5 {[%clk 0:01:34.5]} 24... Qb6 {[%clk 0:01:57.4]} 25.
Rxc8 {[%clk 0:01:28.4]} 25... Rxc8 {[%clk 0:01:57]} 26. Rxc8+ {[%clk 0:01:29.1]}
26... Bxc8 {[%clk 0:01:58]} 27. Qc2 {[%clk 0:01:29.7]} 27... Bb7 {[%clk
0:01:56.6]} 28. h3 {[%clk 0:01:08.3]} 28... h6 {[%clk 0:01:51.6]} 29. Kf1 {[%clk
0:00:55.9]} 29... Qc6 {[%clk 0:01:37.8]} 30. Qxc6 {[%clk 0:00:53]} 30... Bxc6
{[%clk 0:01:39.3]} 31. Nd4 {[%clk 0:00:53.2]} 31... Bd7 {[%clk 0:01:38.4]} 32.
Ke2 {[%clk 0:00:49.3]} 32... Nc5 {[%clk 0:01:28.3]} 33. Bc2 {[%clk 0:00:49.1]}
33... Na4 {[%clk 0:01:27.2]} 34. Bxa4 {[%clk 0:00:46.4]} 34... bxa4 {[%clk
0:01:28.3]} 35. Kd2 {[%clk 0:00:47.7]} 35... Bc5 {[%clk 0:01:26.4]} 36. Kc3
{[%clk 0:00:48.1]} 36... Bxd4+ {[%clk 0:01:21.7]} 37. Kxd4 {[%clk 0:00:46.3]}
37... Bb5 {[%clk 0:01:22.5]} 38. h4 {[%clk 0:00:44.3]} 38... h5 {[%clk 0:01:21]}
39. Kc5 {[%clk 0:00:39.1]} 39... Bf1 {[%clk 0:01:20.9]} 40. Kb4 {[%clk
0:00:36.9]} 40... Bb5 {[%clk 0:01:21]} 41. f3 {[%clk 0:00:34.7]} 41... Kf8
{[%clk 0:01:18.7]} 42. Bg5 {[%clk 0:00:31.4]} 42... Ke8 {[%clk 0:01:19.2]} 43.
g4 {[%clk 0:00:30.3]} 43... g6 {[%clk 0:01:20.1]} 44. Kc5 {[%clk 0:00:25.1]}
44... Kd7 {[%clk 0:01:20]} 45. gxh5 {[%clk 0:00:22.3]} 45... gxh5 {[%clk
0:01:20.2]} 46. f4 {[%clk 0:00:21.1]} 46... Be2 {[%clk 0:01:17.4]} 47. Bh6
{[%clk 0:00:21.2]} 47... Bf1 {[%clk 0:01:16.2]} 48. Bf8 {[%clk 0:00:21.8]} 48...
Be2 {[%clk 0:01:17.2]} 49. Bd6 {[%clk 0:00:22.6]} 49... Bf1 {[%clk 0:01:17.9]}
50. Kb4 {[%clk 0:00:15.8]} 50... Bb5 {[%clk 0:01:18.1]} 51. Kc5 {[%clk
0:00:17.2]} 51... Bf1 {[%clk 0:01:18]} 52. Bb8 {[%clk 0:00:18.3]} 52... Be2
{[%clk 0:01:18]} 53. Ba7 {[%clk 0:00:19.6]} 53... Bf1 {[%clk 0:01:18.5]} 54. Bb6
{[%clk 0:00:20.5]} 54... Be2 {[%clk 0:01:19.3]} 55. Ba5 {[%clk 0:00:21.9]} 55...
Bf1 {[%clk 0:01:20.3]} 56. Be1 {[%clk 0:00:22.4]} 56... Be2 {[%clk 0:01:21.2]}
57. Bd2 {[%clk 0:00:23.9]} 57... Bf1 {[%clk 0:01:22.3]} 58. Bc3 {[%clk
0:00:25.6]} 58... Be2 {[%clk 0:01:23.2]} 59. Ba5 {[%clk 0:00:27.5]} 59... Bf1
{[%clk 0:01:24.2]} 60. Bd2 {[%clk 0:00:29.2]} 60... Be2 {[%clk 0:01:25.2]} 61.
Be1 {[%clk 0:00:30.9]} 61... Bf1 {[%clk 0:01:26.1]} 62. Bf2 {[%clk 0:00:32.6]}
62... Be2 {[%clk 0:01:27.2]} 63. Kb4 {[%clk 0:00:33.9]} 63... Bb5 {[%clk
0:01:27.7]} 64. Kc3 {[%clk 0:00:35.6]} 64... Kc6 {[%clk 0:01:27.2]} 65. Kd4
{[%clk 0:00:37.5]} 65... Bf1 {[%clk 0:01:27.3]} 66. Be1 {[%clk 0:00:39.4]} 66...
Be2 {[%clk 0:01:27]} 67. Bb4 {[%clk 0:00:41.3]} 67... Bf1 {[%clk 0:01:27.9]} 68.
Bc3 {[%clk 0:00:43.2]} 68... Be2 {[%clk 0:01:29]} 1/2-1/2

[Event "*** Titled Tuesday 3|2 Blitz"]
[Site "Chess.com"]
[Date "2016.03.01"]
[Round "8"]
[White "Gau_truc_lon"]
[Black "jk13"]
[Result "0-1"]
[WhiteElo "2159"]
[BlackElo "2423"]
[TimeControl "180+2"]
[EndTime "18:38:30 PST"]
[Termination "jk13 won by resignation"]

1. d4 {[%clk 0:03:01.9]} 1... Nf6 {[%clk 0:02:59.5]} 2. c4 {[%clk 0:03:03.1]}
2... e6 {[%clk 0:03:01.4]} 3. Nc3 {[%clk 0:03:03.5]} 3... Bb4 {[%clk 0:03:03.1]}
4. e3 {[%clk 0:03:04.9]} 4... O-O {[%clk 0:03:04.6]} 5. Ne2 {[%clk 0:03:05.7]}
5... d5 {[%clk 0:03:06.2]} 6. a3 {[%clk 0:03:06.7]} 6... Be7 {[%clk 0:03:07.8]}
7. Ng3 {[%clk 0:03:06.4]} 7... c6 {[%clk 0:03:08.5]} 8. e4 {[%clk 0:03:00.5]}
8... dxe4 {[%clk 0:03:04.8]} 9. Ngxe4 {[%clk 0:02:58.4]} 9... b6 {[%clk
0:03:03.2]} 10. Be2 {[%clk 0:02:53.9]} 10... Bb7 {[%clk 0:03:04.1]} 11. Bf3
{[%clk 0:02:53.1]} 11... Nbd7 {[%clk 0:03:04.8]} 12. O-O {[%clk 0:02:43.5]}
12... Qc7 {[%clk 0:03:02.2]} 13. g3 {[%clk 0:02:37.6]} 13... Rad8 {[%clk
0:02:52.6]} 14. Qc2 {[%clk 0:02:25.2]} 14... e5 {[%clk 0:02:44.6]} 15. dxe5
{[%clk 0:02:22.8]} 15... Nxe5 {[%clk 0:02:44.3]} 16. Bg2 {[%clk 0:02:22.2]}
16... Qc8 {[%clk 0:02:24.8]} 17. c5 {[%clk 0:02:09.6]} 17... Ba6 {[%clk
0:02:17.4]} 18. Re1 {[%clk 0:02:04.1]} 18... Nd3 {[%clk 0:02:17.7]} 19. Bf4
{[%clk 0:01:46]} 19... Nxf4 {[%clk 0:02:13.3]} 20. gxf4 {[%clk 0:01:45.1]} 20...
Bd3 {[%clk 0:01:56.3]} 21. Qb3 {[%clk 0:01:39.4]} 21... bxc5 {[%clk 0:01:55.4]}
22. Nxf6+ {[%clk 0:01:29]} 22... Bxf6 {[%clk 0:01:55.6]} 23. Qa4 {[%clk
0:01:30]} 23... c4 {[%clk 0:01:47.6]} 24. Qxc6 {[%clk 0:01:26.3]} 24... Qxc6
{[%clk 0:01:43.3]} 25. Bxc6 {[%clk 0:01:28.2]} 25... Rb8 {[%clk 0:01:44.3]} 26.
Na4 {[%clk 0:01:11.9]} 26... Rfc8 {[%clk 0:01:37.8]} 27. Be4 {[%clk 0:01:04.9]}
27... Bxb2 {[%clk 0:01:20.8]} 28. Nxb2 {[%clk 0:01:02.1]} 28... Rxb2 {[%clk
0:01:22.7]} 29. Rac1 {[%clk 0:00:56.4]} 29... Rd8 {[%clk 0:01:14]} 30. Bd5
{[%clk 0:00:50.5]} 30... g6 {[%clk 0:00:47.8]} 31. Bxc4 {[%clk 0:00:51.4]} 31...
Rd4 {[%clk 0:00:41.3]} 32. Bxd3 {[%clk 0:00:31.9]} 32... Rxd3 {[%clk 0:00:43.2]}
33. Rc7 {[%clk 0:00:28]} 33... Rf3 {[%clk 0:00:43.1]} 34. Rxa7 {[%clk
0:00:23.1]} 34... Rfxf2 {[%clk 0:00:42.6]} 35. Re4 {[%clk 0:00:12.6]} 35... Rg2+
{[%clk 0:00:40.5]} 36. Kf1 {[%clk 0:00:12.4]} 36... Rxh2 {[%clk 0:00:42.4]} 37.
Kg1 {[%clk 0:00:13.5]} 37... Rhc2 {[%clk 0:00:42.6]} 38. Re1 {[%clk 0:00:14]}
38... Ra2 {[%clk 0:00:38.4]} 39. a4 {[%clk 0:00:14.6]} 39... Kg7 {[%clk
0:00:37.9]} 40. Rd1 {[%clk 0:00:15.5]} 40... Rc4 {[%clk 0:00:37.5]} 41. Rf1
{[%clk 0:00:15.7]} 41... Rcxa4 {[%clk 0:00:37.8]} 42. Rxa4 {[%clk 0:00:16.2]}
42... Rxa4 {[%clk 0:00:39.7]} 43. f5 {[%clk 0:00:17.8]} 43... Rg4+ {[%clk
0:00:39.8]} 44. Kh2 {[%clk 0:00:18.7]} 44... f6 {[%clk 0:00:39.2]} 45. Kh3
{[%clk 0:00:18.9]} 45... Rg5 {[%clk 0:00:39.9]} 46. fxg6 {[%clk 0:00:20.3]}
46... hxg6 {[%clk 0:00:41.6]} 47. Rd1 {[%clk 0:00:21.5]} 47... f5 {[%clk
0:00:42.4]} 48. Rd6 {[%clk 0:00:21.7]} 48... Rg4 {[%clk 0:00:42.9]} 49. Rb6
{[%clk 0:00:22.2]} 49... Kh6 {[%clk 0:00:44.4]} 50. Ra6 {[%clk 0:00:22]} 50...
Kg5 {[%clk 0:00:45.9]} 51. Rb6 {[%clk 0:00:23]} 51... Rh4+ {[%clk 0:00:46.8]}
52. Kg3 {[%clk 0:00:23.9]} 52... Rd4 {[%clk 0:00:48.4]} 53. Kf3 {[%clk
0:00:23.7]} 53... Rd3+ {[%clk 0:00:49.1]} 54. Ke2 {[%clk 0:00:25.2]} 54... Ra3
{[%clk 0:00:50.6]} 55. Kf2 {[%clk 0:00:26.4]} 55... Kh5 {[%clk 0:00:51.6]} 56.
Kg2 {[%clk 0:00:27.3]} 56... g5 {[%clk 0:00:52.4]} 57. Rb5 {[%clk 0:00:28.5]}
57... f4 {[%clk 0:00:53.4]} 58. Rb8 {[%clk 0:00:27.9]} 58... Kg4 {[%clk
0:00:53.9]} 59. Rb2 {[%clk 0:00:29.1]} 59... Rg3+ {[%clk 0:00:53.8]} 60. Kf2
{[%clk 0:00:30.6]} 60... Rh3 {[%clk 0:00:55.6]} 61. Kg2 {[%clk 0:00:32]} 61...
f3+ {[%clk 0:00:55.9]} 62. Kg1 {[%clk 0:00:33.5]} 62... Rh8 {[%clk 0:00:52.7]}
63. Rb5 {[%clk 0:00:33.3]} 63... Rc8 {[%clk 0:00:51.4]} 64. Kf2 {[%clk
0:00:33.2]} 64... Rc2+ {[%clk 0:00:51.6]} 65. Ke3 {[%clk 0:00:34.3]} 65... Re2+
{[%clk 0:00:52.1]} 66. Kd3 {[%clk 0:00:35.8]} 66... Re8 {[%clk 0:00:52.8]} 67.
Rb1 {[%clk 0:00:30.2]} 67... f2 {[%clk 0:00:52.4]} 0-1

[Event "*** Titled Tuesday 3|2 Blitz"]
[Site "Chess.com"]
[Date "2016.03.01"]
[Round "8"]
[White "MMSANCHEZ"]
[Black "Zazuliak"]
[Result "1/2-1/2"]
[WhiteElo "2263"]
[BlackElo "2325"]
[TimeControl "180+2"]
[EndTime "18:40:31 PST"]
[Termination "Game drawn by agreement"]

1. d4 {[%clk 0:03:01.9]} 1... Nf6 {[%clk 0:02:59.1]} 2. Nf3 {[%clk 0:03:02.4]}
2... g6 {[%clk 0:02:59.6]} 3. c4 {[%clk 0:03:04]} 3... Bg7 {[%clk 0:03:00.6]} 4.
Nc3 {[%clk 0:03:05.6]} 4... O-O {[%clk 0:03:01.8]} 5. e4 {[%clk 0:03:06.4]} 5...
d6 {[%clk 0:03:03]} 6. h3 {[%clk 0:03:07.6]} 6... Na6 {[%clk 0:03:03]} 7. Bg5
{[%clk 0:03:07.6]} 7... h6 {[%clk 0:03:03.3]} 8. Be3 {[%clk 0:03:07.6]} 8... e5
{[%clk 0:03:03.9]} 9. d5 {[%clk 0:03:07.5]} 9... Nc5 {[%clk 0:03:04.4]} 10. Nd2
{[%clk 0:03:08.3]} 10... a5 {[%clk 0:03:03.9]} 11. Be2 {[%clk 0:03:01.2]} 11...
Ne8 {[%clk 0:03:02.5]} 12. Nb3 {[%clk 0:02:45.9]} 12... b6 {[%clk 0:02:59.2]}
13. Nxc5 {[%clk 0:02:46.3]} 13... bxc5 {[%clk 0:02:59.7]} 14. Qd2 {[%clk
0:02:44.6]} 14... Kh7 {[%clk 0:02:59.8]} 15. g4 {[%clk 0:02:44.6]} 15... Bd7
{[%clk 0:02:50.4]} 16. O-O-O {[%clk 0:02:32.3]} 16... a4 {[%clk 0:02:48.4]} 17.
h4 {[%clk 0:02:26.5]} 17... Qe7 {[%clk 0:02:39.7]} 18. f3 {[%clk 0:02:17]} 18...
Rb8 {[%clk 0:02:34.8]} 19. Bd3 {[%clk 0:02:11.5]} 19... Qd8 {[%clk 0:02:26.9]}
20. Nb5 {[%clk 0:02:02.9]} 20... Bxb5 {[%clk 0:02:21.4]} 21. cxb5 {[%clk
0:02:03.5]} 21... Ra8 {[%clk 0:02:22.6]} 22. a3 {[%clk 0:02:03.8]} 22... Qb8
{[%clk 0:02:21.5]} 23. Rdg1 {[%clk 0:01:30.6]} 23... Qb6 {[%clk 0:02:11]} 24.
Kb1 {[%clk 0:01:28.9]} 24... Qb7 {[%clk 0:02:10.9]} 25. h5 {[%clk 0:01:18.9]}
25... g5 {[%clk 0:02:10.9]} 26. Bxg5 {[%clk 0:01:19.9]} 26... hxg5 {[%clk
0:02:11.2]} 27. Qxg5 {[%clk 0:01:20.9]} 27... Qc8 {[%clk 0:02:04]} 28. h6 {[%clk
0:01:08.6]} 28... Bh8 {[%clk 0:01:51.9]} 29. Qh5 {[%clk 0:01:05.4]} 29... Qd7
{[%clk 0:01:48.4]} 30. g5 {[%clk 0:01:06.6]} 30... Rg8 {[%clk 0:01:47]} 31. f4
{[%clk 0:01:05.2]} 31... exf4 {[%clk 0:01:09.3]} 32. e5+ {[%clk 0:01:04.7]}
32... Rg6 {[%clk 0:01:09.5]} 33. e6 {[%clk 0:00:48.9]} 33... Qe7 {[%clk
0:01:07.1]} 34. Re1 {[%clk 0:00:39.3]} 34... Be5 {[%clk 0:01:04.4]} 35. exf7
{[%clk 0:00:13.6]} 35... Qxf7 {[%clk 0:01:04.7]} 36. Rhf1 {[%clk 0:00:14.7]}
36... c4 {[%clk 0:01:02.1]} 37. Rxf4 {[%clk 0:00:15.1]} 37... Qg8 {[%clk
0:00:45.1]} 38. Bxg6+ {[%clk 0:00:15.8]} 38... Qxg6+ {[%clk 0:00:39.9]} 39.
Qxg6+ {[%clk 0:00:15]} 39... Kxg6 {[%clk 0:00:41.2]} 40. Rf8 {[%clk 0:00:16.6]}
40... Rb8 {[%clk 0:00:37.3]} 41. b6 {[%clk 0:00:16.1]} 41... cxb6 {[%clk
0:00:37.4]} 42. Rxe5 {[%clk 0:00:17.2]} 42... dxe5 {[%clk 0:00:38]} 43. d6
{[%clk 0:00:18.8]} 43... Rd8 {[%clk 0:00:38.7]} 44. d7 {[%clk 0:00:17.7]} 44...
Rxd7 {[%clk 0:00:39.5]} 45. Rxe8 {[%clk 0:00:19]} 45... Kxg5 {[%clk 0:00:40.8]}
46. Rxe5+ {[%clk 0:00:20]} 46... Kf4 {[%clk 0:00:41.6]} 47. Re6 {[%clk
0:00:20.3]} 47... b5 {[%clk 0:00:41.5]} 48. Rb6 {[%clk 0:00:21]} 48... Rd5
{[%clk 0:00:41.6]} 49. Kc2 {[%clk 0:00:22.3]} 49... Rh5 {[%clk 0:00:41.9]} 50.
Kc3 {[%clk 0:00:22.9]} 50... Rh3+ {[%clk 0:00:40.3]} 51. Kd4 {[%clk 0:00:21.6]}
51... Rb3 {[%clk 0:00:36.8]} 52. h7 {[%clk 0:00:22.1]} 52... Rh3 {[%clk
0:00:37.1]} 53. Rxb5 {[%clk 0:00:23.1]} 53... Rxh7 {[%clk 0:00:37.9]} 54. Kxc4
{[%clk 0:00:24.6]} 54... Ke4 {[%clk 0:00:38.9]} 55. Kb4 {[%clk 0:00:21.8]} 55...
Ra7 {[%clk 0:00:39.4]} 56. Rb8 {[%clk 0:00:16.1]} 56... Kd5 {[%clk 0:00:39.6]}
57. Rb5+ {[%clk 0:00:15]} 57... Kc6 {[%clk 0:00:39.1]} 58. Rc5+ {[%clk
0:00:16.4]} 58... Kd6 {[%clk 0:00:36]} 59. Rc2 {[%clk 0:00:15.4]} 59... Ra8
{[%clk 0:00:36.2]} 60. Rd2+ {[%clk 0:00:15.8]} 60... Kc6 {[%clk 0:00:36.9]} 61.
Rc2+ {[%clk 0:00:17.1]} 61... Kd6 {[%clk 0:00:37.5]} 62. Rc5 {[%clk 0:00:18.1]}
62... Rb8+ {[%clk 0:00:35.9]} 63. Rb5 {[%clk 0:00:18.6]} 63... Ra8 {[%clk
0:00:37.2]} 64. Ra5 {[%clk 0:00:18.8]} 64... Rb8+ {[%clk 0:00:38]} 65. Kc3
{[%clk 0:00:18.3]} 65... Rc8+ {[%clk 0:00:35]} 66. Kd3 {[%clk 0:00:18.9]} 66...
Rb8 {[%clk 0:00:34.9]} 67. Kc2 {[%clk 0:00:18.2]} 67... Rc8+ {[%clk 0:00:35.7]}
68. Kb1 {[%clk 0:00:19.4]} 68... Rc4 {[%clk 0:00:36.2]} 69. Ka2 {[%clk
0:00:20.7]} 69... Kc6 {[%clk 0:00:36.8]} 70. Rh5 {[%clk 0:00:21.6]} 70... Kb6
{[%clk 0:00:37.4]} 71. Rh6+ {[%clk 0:00:22.9]} 71... Kb5 {[%clk 0:00:38.1]} 72.
Rh5+ {[%clk 0:00:24.2]} 72... Kb6 {[%clk 0:00:38.9]} 73. Rh2 {[%clk 0:00:25.4]}
73... Kb5 {[%clk 0:00:39.7]} 74. b3 {[%clk 0:00:25.8]} 74... axb3+ {[%clk
0:00:39.8]} 75. Kxb3 {[%clk 0:00:27.2]} 75... Rc5 {[%clk 0:00:41.7]} 76. Rh6
{[%clk 0:00:25.4]} 76... Ka5 {[%clk 0:00:42.1]} 77. Rh8 {[%clk 0:00:26.2]} 77...
Rb5+ {[%clk 0:00:42.6]} 78. Ka2 {[%clk 0:00:27.1]} 78... Ka6 {[%clk 0:00:41.6]}
79. a4 {[%clk 0:00:27.6]} 79... Rb4 {[%clk 0:00:41.9]} 80. Ka3 {[%clk
0:00:28.9]} 80... Rb1 {[%clk 0:00:42.2]} 81. Rh6+ {[%clk 0:00:28.9]} 81... Ka5
{[%clk 0:00:41.7]} 82. Rh5+ {[%clk 0:00:30]} 82... Ka6 {[%clk 0:00:42.5]} 83.
Rh6+ {[%clk 0:00:30.5]} 83... Ka5 {[%clk 0:00:43]} 84. Rh8 {[%clk 0:00:30.8]}
84... Ra1+ {[%clk 0:00:40.1]} 85. Kb3 {[%clk 0:00:32.1]} 85... Rb1+ {[%clk
0:00:40.5]} 86. Kc4 {[%clk 0:00:32.8]} 86... Rb4+ {[%clk 0:00:40.5]} 87. Kc5
{[%clk 0:00:34.1]} 87... Kxa4 {[%clk 0:00:38.2]} 88. Ra8+ {[%clk 0:00:34.4]}
88... Kb3 {[%clk 0:00:38.7]} 89. Ra5 {[%clk 0:00:33.7]} 1/2-1/2

[Event "*** Titled Tuesday 3|2 Blitz"]
[Site "Chess.com"]
[Date "2016.03.01"]
[Round "9"]
[White "kikydu96"]
[Black "Goala"]
[Result "0-1"]
[WhiteElo "2270"]
[BlackElo "2248"]
[TimeControl "180+2"]
[EndTime "18:46:47 PST"]
[Termination "Goala won by resignation"]

1. e4 {[%clk 0:03:01.9]} 1... e6 {[%clk 0:03:01.6]} 2. d4 {[%clk 0:03:01.8]}
2... d5 {[%clk 0:03:03.1]} 3. Nd2 {[%clk 0:03:01]} 3... Nf6 {[%clk 0:03:04.7]}
4. e5 {[%clk 0:03:01.7]} 4... Nfd7 {[%clk 0:03:06.4]} 5. c3 {[%clk 0:03:00.8]}
5... c5 {[%clk 0:03:07.9]} 6. Bd3 {[%clk 0:03:01.5]} 6... Nc6 {[%clk 0:03:09.3]}
7. Ne2 {[%clk 0:03:02.6]} 7... cxd4 {[%clk 0:03:10.8]} 8. cxd4 {[%clk
0:03:03.5]} 8... f6 {[%clk 0:03:12.5]} 9. exf6 {[%clk 0:03:04.3]} 9... Nxf6
{[%clk 0:03:14.4]} 10. Nf3 {[%clk 0:03:05.5]} 10... Bd6 {[%clk 0:03:16]} 11. O-O
{[%clk 0:03:06.6]} 11... Qc7 {[%clk 0:03:17.7]} 12. Bg5 {[%clk 0:03:06.5]} 12...
O-O {[%clk 0:03:19.4]} 13. Bh4 {[%clk 0:03:07.4]} 13... Nh5 {[%clk 0:03:19.4]}
14. Qc2 {[%clk 0:03:04]} 14... h6 {[%clk 0:03:20.3]} 15. Bh7+ {[%clk 0:03:04.2]}
15... Kh8 {[%clk 0:03:21.5]} 16. Bg6 {[%clk 0:03:05.8]} 16... Rxf3 {[%clk
0:03:23.1]} 17. Bxh5 {[%clk 0:03:04]} 17... Rf5 {[%clk 0:03:24.6]} 18. Bg6
{[%clk 0:03:03]} 18... Bxh2+ {[%clk 0:03:26]} 19. Kh1 {[%clk 0:03:03.4]} 19...
Bd6 {[%clk 0:03:27.4]} 20. Bxf5 {[%clk 0:03:03.6]} 20... exf5 {[%clk 0:03:29.3]}
21. Qd3 {[%clk 0:02:57.2]} 21... Qf7 {[%clk 0:03:25.6]} 22. Bg3 {[%clk 0:02:54]}
22... f4 {[%clk 0:03:18.4]} 23. Bxf4 {[%clk 0:02:50.5]} 23... Bxf4 {[%clk
0:03:17]} 24. Qf3 {[%clk 0:02:51.4]} 24... g5 {[%clk 0:02:56.2]} 25. g3 {[%clk
0:02:52.3]} 25... Bf5 {[%clk 0:02:48.5]} 26. Kh2 {[%clk 0:02:42.4]} 26... Be4
{[%clk 0:02:24.2]} 27. Qg4 {[%clk 0:02:42.7]} 27... Bf5 {[%clk 0:02:05.9]} 28.
Qf3 {[%clk 0:02:41.8]} 28... Be4 {[%clk 0:02:06.9]} 29. Qg4 {[%clk 0:02:42.4]}
29... h5 {[%clk 0:01:31.7]} 30. Qh3 {[%clk 0:02:42.1]} 30... g4 {[%clk
0:01:32.2]} 31. Qh4 {[%clk 0:02:42.4]} 31... Bh6 {[%clk 0:01:21.7]} 32. Nf4
{[%clk 0:02:23.4]} 32... Bxf4 {[%clk 0:01:21.6]} 33. gxf4 {[%clk 0:02:24.7]}
33... Qxf4+ {[%clk 0:01:20.3]} 34. Kg1 {[%clk 0:02:25.8]} 34... Nxd4 {[%clk
0:01:02.6]} 35. Qxh5+ {[%clk 0:02:14]} 35... Kg7 {[%clk 0:01:03.5]} 36. f3
{[%clk 0:02:15.4]} 36... Qg3+ {[%clk 0:00:52.6]} 37. Kh1 {[%clk 0:02:13.9]}
37... Bxf3+ {[%clk 0:00:48.9]} 38. Rxf3 {[%clk 0:02:13.4]} 38... Qxf3+ {[%clk
0:00:50.7]} 39. Kg1 {[%clk 0:02:14.2]} 39... Ne2+ {[%clk 0:00:50.4]} 0-1

[Event "*** Titled Tuesday 3|2 Blitz"]
[Site "Chess.com"]
[Date "2016.03.01"]
[Round "9"]
[White "thegreendog"]
[Black "Shivagami"]
[Result "1-0"]
[WhiteElo "2218"]
[BlackElo "1856"]
[TimeControl "180+2"]
[EndTime "18:47:35 PST"]
[Termination "thegreendog won by resignation"]

1. d4 {[%clk 0:03:01.9]} 1... Nf6 {[%clk 0:02:59.1]} 2. Nf3 {[%clk 0:03:03.5]}
2... g6 {[%clk 0:03:00.5]} 3. Bg5 {[%clk 0:03:05.1]} 3... Bg7 {[%clk 0:03:01.8]}
4. Nbd2 {[%clk 0:03:06.7]} 4... d5 {[%clk 0:03:00.8]} 5. e3 {[%clk 0:03:08.1]}
5... O-O {[%clk 0:03:01.7]} 6. Bd3 {[%clk 0:03:09.6]} 6... Bg4 {[%clk
0:02:53.6]} 7. h3 {[%clk 0:03:10.2]} 7... Bxf3 {[%clk 0:02:46.8]} 8. Qxf3 {[%clk
0:03:10.5]} 8... Ne4 {[%clk 0:02:48.5]} 9. Nxe4 {[%clk 0:03:08.8]} 9... dxe4
{[%clk 0:02:50.4]} 10. Bxe4 {[%clk 0:03:07.6]} 10... c6 {[%clk 0:02:50.4]} 11.
O-O {[%clk 0:03:06.9]} 11... Nd7 {[%clk 0:02:49.7]} 12. c4 {[%clk 0:03:06.2]}
12... Nf6 {[%clk 0:02:50.3]} 13. Bc2 {[%clk 0:03:06.2]} 13... Qb6 {[%clk
0:02:47.9]} 14. Rab1 {[%clk 0:03:06.5]} 14... Rad8 {[%clk 0:02:38.4]} 15. b4
{[%clk 0:03:05.6]} 15... Qc7 {[%clk 0:02:35.7]} 16. Bf4 {[%clk 0:03:05.3]} 16...
Qc8 {[%clk 0:02:36.4]} 17. Rfc1 {[%clk 0:02:59.7]} 17... Nd7 {[%clk 0:02:36.2]}
18. d5 {[%clk 0:02:41.1]} 18... Ne5 {[%clk 0:02:27.7]} 19. Bxe5 {[%clk 0:02:37]}
19... Bxe5 {[%clk 0:02:29.6]} 20. Ba4 {[%clk 0:02:28.9]} 20... c5 {[%clk
0:02:17.8]} 21. bxc5 {[%clk 0:02:25.4]} 21... Qxc5 {[%clk 0:02:17.8]} 22. Rxb7
{[%clk 0:02:21.9]} 22... Rb8 {[%clk 0:02:11.3]} 23. Rxb8 {[%clk 0:02:16.6]}
23... Rxb8 {[%clk 0:02:10.9]} 24. Bb3 {[%clk 0:02:18.2]} 24... a5 {[%clk
0:02:10]} 25. e4 {[%clk 0:02:17.2]} 25... Qb4 {[%clk 0:02:06.1]} 26. g3 {[%clk
0:02:02.2]} 26... a4 {[%clk 0:02:07]} 27. Bd1 {[%clk 0:02:03.2]} 27... Qb2
{[%clk 0:02:04.2]} 28. Rc2 {[%clk 0:02:02.7]} 28... Qb1 {[%clk 0:02:05.5]} 29.
Kg2 {[%clk 0:02:02.8]} 29... Rb2 {[%clk 0:02:01.5]} 30. Rxb2 {[%clk 0:02:03.2]}
30... Qxb2 {[%clk 0:02:03.1]} 31. Bxa4 {[%clk 0:02:03.6]} 31... Qxa2 {[%clk
0:02:04.6]} 32. Bb3 {[%clk 0:02:04.7]} 32... Qa6 {[%clk 0:01:59.1]} 33. c5
{[%clk 0:02:04.3]} 33... Qb5 {[%clk 0:01:58.5]} 34. d6 {[%clk 0:02:02.2]} 34...
e6 {[%clk 0:01:49.8]} 35. Qe3 {[%clk 0:02:00.6]} 35... Qc6 {[%clk 0:01:47.7]}
36. f4 {[%clk 0:01:59.3]} 36... Bg7 {[%clk 0:01:46.8]} 37. Qd3 {[%clk
0:01:52.9]} 37... Bf6 {[%clk 0:01:34.4]} 38. Qc4 {[%clk 0:01:39]} 38... Bd8
{[%clk 0:01:31.2]} 39. Ba4 {[%clk 0:01:28.2]} 39... Qb7 {[%clk 0:01:31.7]} 40.
c6 {[%clk 0:01:27.3]} 40... Qb2+ {[%clk 0:01:33.2]} 41. Bc2 {[%clk 0:01:27.8]}
41... Qb8 {[%clk 0:01:18.1]} 42. c7 {[%clk 0:01:26.5]} 42... Qc8 {[%clk
0:01:19.6]} 43. cxd8=Q+ {[%clk 0:01:26.5]} 43... Qxd8 {[%clk 0:01:19.4]} 44. Qc7
{[%clk 0:01:23.4]} 1-0